[Event "Queens Festival Final Team 2022"]
[Site "Tornelo"]
[Date "2022.06.26"]
[Round "7.2"]
[White "khezrian, Neda"]
[Black "Perez Rodriguez, Jennifer"]
[Result "0-1"]
[ECO "D35"]
[WhiteElo "1056"]
[BlackElo "2251"]
[Annotator "TA"]
[PlyCount "112"]
[EventDate "2022.06.24"]
[EventType "team-tourn"]
[EventCountry "NET"]
[SourceTitle "playchess.com"]
[Source "ChessBase"]
[SourceQuality "1"]
[WhiteTeam "Iran"]
[BlackTeam "Paraguay"]
[WhiteTeamCountry "IRI"]
[BlackTeamCountry "PAR"]
[TimeControl "180+2"]

{[%evp 9,111,3,34,25,49,0,0,0,4,0,0,-10,-8,-135,0,0,0,-16,-17,-29,-28,-309,-305,-336,-195,-254,-254,-379,-366,-582,-571,-658,-648,-889,-889,-866,-859,-919,-904,-888,-826,-1483,-1416,-1064,-1064,-1634,-1577,-1578,-1542,-6617,-5961,-5910,-5614,-5727,-2595,-29975,-29976,-29977,-29978,-29977,-29978,-29979,-29980,-29981,-29982,-29981,-29981,-29984,-29985,-29985,-29986,-29986,-29987,-29987,-29988,-29988,-29988,-29989,-29988,-29988,-29989,-29990,-29991,-29991,-29992,-29992,-29991,-29991,-29991,-29992,-29991,-29992,-29993,-29993,-29994,-29994,-29995,-29995,-29996,-29996,-29996,-29998,-29999,-29999]} 1. d4 {[%emt 0:00:07]} Nf6 {[%emt 0:02:16]} 2. c4 {[%emt 0:00:08]} e6 {[%emt 0:00:02]} 3. Nc3 {[%emt 0:00:02]} d5 {[%emt 0:00:00]} 4. Bf4 {[%emt 0:00:05]} Bd6 {[%emt 0:00:02]} 5. Bg3 {[%emt 0:00:02]} Bxg3 {[%emt 0:00:02]} 6. hxg3 {[%emt 0:00:03] D35: Queen's Gambit Declined: Exchange Variation.} h6 {[%emt 0:00:00]} 7. Nf3 {[%emt 0:00:02]} (7. e3 $14) 7... O-O $11 {[%emt 0:00:01]} 8. e3 {[%emt 0:00:03] The position is equal.} Nbd7 {[%emt 0:00:02]} 9. Bd3 {[%emt 0:00:03]} c5 {[%emt 0:00:01] [#]} 10. dxc5 $146 {[%emt 0:00:17]} ({Predecessor:} 10. cxd5 exd5 11. O-O b6 12. Ne5 Re8 13. f4 Nxe5 14. dxe5 Ng4 15. Nxd5 Bb7 16. Qxg4 Qxd5 {1-0 (41) Kononenko,T (2388)-Dincok,B Antalya 2002}) 10... Nxc5 {[%emt 0:00:00]} (10... dxc4 {with more complications.} 11. Bxc4 Nxc5 12. Qxd8 Rxd8 13. Rh4 b6) 11. Ne5 {[%emt 0:00:03] [#]} (11. cxd5 $11 exd5 12. O-O) 11... Nxd3+ {[%emt 0:00:02]} (11... Qc7 $1 $17 {[%cal Rc7e5]} 12. f4 Ncd7 13. Nxd7 Bxd7 14. cxd5 Qb6) 12. Qxd3 {[%emt 0:00:04]} dxc4 {[%emt 0:00:01]} 13. Qxd8 {[%emt 0:00:05]} Rxd8 {[%emt 0:00:00]} 14. Nxc4 {[%emt 0:00:02]} b6 {[%emt 0:00:01][%cal Bb7b6,Bb6b5][%mdl 32]} 15. O-O $2 {[%emt 0:00:07][%mdl 8192] This costs White the game.} (15. Rh4 $11 {and White stays safe.}) 15... Ba6 $19 {[%emt 0:00:02]} 16. b3 {[%emt 0:00:07]} Rac8 {[%emt 0:00:01]} (16... b5 $142 17. Ne5 b4) 17. Rad1 {[%emt 0:00:04]} (17. Rfd1 $142) 17... Rxd1 {[%emt 0:00:03]} 18. Rxd1 {[%emt 0:00:02]} (18. Nxd1 {only move.} Bxc4 19. bxc4) 18... b5 {[%emt 0:00:01]} 19. Nd6 {[%emt 0:00:09]} (19. Nxb5 $142 Bxb5 20. Nd6) 19... Rxc3 {[%emt 0:00:02]} 20. f3 {[%emt 0:00:24]} Rxe3 {[%emt 0:00:04]} 21. Ne4 {[%emt 0:00:07]} Nxe4 {[%emt 0:00:03]} 22. fxe4 {[%emt 0:00:01][%mdl 4096] Endgame KRB-KR} b4 {[%emt 0:00:02]} 23. Rd7 {[%emt 0:00:07]} Rxe4 {[%emt 0:00:04]} 24. Rxa7 {[%emt 0:00:04]} Bd3 {[%emt 0:00:01]} 25. Rb7 {[%emt 0:00:12]} Bb1 {[%emt 0:00:03]} 26. Ra7 {[%emt 0:00:08]} g5 {[%emt 0:00:02]} 27. Kf2 {[%emt 0:00:02]} Kg7 {[%emt 0:00:01]} 28. Kf3 {[%emt 0:00:02]} h5 {[%emt 0:00:02] ...Kf6 is the strong threat.} 29. a3 {[%emt 0:00:10]} bxa3 {[%emt 0:00:03]} 30. Rxa3 {[%emt 0:00:02]} g4+ {[%emt 0:00:01]} 31. Kf2 {[%emt 0:00:02]} Bd3 {[%emt 0:00:01] [#] ( -> ...Re2+)} 32. b4 {[%emt 0:00:04]} Re2+ {[%emt 0:00:04] Black mates.} 33. Kg1 {[%emt 0:00:03]} Be4 {[%emt 0:00:01]} 34. Kf1 {[%emt 0:00:11]} Rb2 {[%emt 0:00:08]} 35. Re3 {[%emt 0:00:04]} Bxg2+ {[%emt 0:00:02]} 36. Kg1 {[%emt 0:00:05]} Bd5 {[%emt 0:00:01]} 37. Kf1 {[%emt 0:00:09]} Rxb4 {[%emt 0:00:02]} 38. Ke1 {[%emt 0:00:02]} Re4 {[%emt 0:00:02]} 39. Rxe4 {[%emt 0:00:02]} Bxe4 {[%emt 0:00:00] KB-KP} 40. Ke2 {[%emt 0:00:01]} Kg6 {[%emt 0:00:00]} 41. Ke3 {[%emt 0:00:01]} Bd5 {[%emt 0:00:01]} 42. Kf4 {[%emt 0:00:01]} f6 {[%emt 0:00:01]} 43. Ke3 {[%emt 0:00:02]} e5 {[%emt 0:00:01]} 44. Kf2 {[%emt 0:00:01]} Kg5 {[%emt 0:00:00]} 45. Ke3 {[%emt 0:00:06]} h4 {[%emt 0:00:00]} 46. gxh4+ {[%emt 0:00:02]} Kxh4 {[%emt 0:00:00]} 47. Kf2 {[%emt 0:00:01]} Kh3 {[%emt 0:00:04][%cal Bh4h3,Bh3g3,Bg3h2][%mdl 32]} 48. Kg1 {[%emt 0:00:01]} Kg3 {[%emt 0:00:01]} 49. Kf1 {[%emt 0:00:03]} Kh2 {[%emt 0:00:00]} 50. Kf2 {[%emt 0:00:02]} g3+ {[%emt 0:00:01]} 51. Ke3 {[%emt 0:00:01]} g2 {[%emt 0:00:00]} 52. Kd3 {[%emt 0:00:02]} g1=Q {[%emt 0:00:01]} 53. Kc3 {[%emt 0:00:02]} Qd4+ {[%emt 0:00:02]} 54. Kc2 {[%emt 0:00:02]} Be4+ {[%emt 0:00:02]} 55. Kc1 {[%emt 0:00:02]} Qc3+ {[%emt 0:00:02]} 56. Kd1 {[%emt 0:00:02]} Bf3# {[%emt 0:00:01] Weighted Error Value: White=1.13/Black=0.16 (very precise)} 0-1

[Event "Queens Festival Final Team 2022"]
[Site "Tornelo"]
[Date "2022.06.26"]
[Round "7.3"]
[White "Ovezdurdiyeva, Jemal"]
[Black "Alboredo, Julia"]
[Result "1-0"]
[ECO "E61"]
[WhiteElo "2061"]
[BlackElo "2252"]
[Annotator "TA"]
[PlyCount "143"]
[EventDate "2022.06.24"]
[EventType "team-tourn"]
[EventCountry "NET"]
[SourceTitle "playchess.com"]
[Source "ChessBase"]
[SourceQuality "1"]
[WhiteTeam "Turkmenistan"]
[BlackTeam "Brazil"]
[WhiteTeamCountry "TKM"]
[BlackTeamCountry "BRA"]
[TimeControl "180+2"]

{[%evp 13,143,19,29,18,34,-1,10,-13,16,9,41,18,43,56,63,60,53,70,66,46,43,39,56,45,45,7,34,6,7,3,72,70,119,-23,0,0,0,0,0,0,0,-49,-54,-90,-77,-132,-125,-117,-114,-103,-12,-10,0,0,0,-1,0,-50,0,0,0,0,0,0,59,59,110,22,27,-8,-8,-834,-373,-5057,0,-21,-21,-21,-16,-16,0,0,0,0,8,0,0,0,0,0,0,0,0,0,0,0,0,0,8,8,8,8,8,8,8,8,8,8,8,0,8,8,8,8,8,8,29980,29981,29981,29982,29982,29983,29983,29984,29985,29986,29986,29987,29987,29988,29989,29990]} 1. d4 {[%emt 0:00:02]} Nf6 {[%emt 0:00:05]} 2. c4 {[%emt 0:00:02]} g6 {[%emt 0:00:02]} 3. Nc3 {[%emt 0:00:01]} Bg7 {[%emt 0:00:02]} 4. Bg5 {[%emt 0:00:05]} O-O {[%emt 0:00:06]} 5. e3 {[%emt 0:00:04]} d6 {[%emt 0:00:07]} 6. Be2 {[%emt 0:00:06]} c6 {[%emt 0:00:02]} 7. Nf3 {[%emt 0:00:05]} a6 {[%emt 0:00:02]} 8. Qc2 {[%emt 0:00:02] E61: King's Indian: Early deviations for White, including Smyslov System.} b5 {[%emt 0:00:04]} 9. a3 {[%emt 0:00:30]} Nbd7 {[%emt 0:00:13]} 10. Rd1 {[%emt 0:00:05] The position is equal.} Bb7 {[%emt 0:00:03]} 11. O-O {[%emt 0:00:02][%cal Oc4c5]} Rc8 {[%emt 0:00:11] [#]} 12. e4 $146 {[%emt 0:00:06]} ({Predecessor:} 12. Qd2 Re8 13. Rfe1 Qb6 14. e4 bxc4 15. Bxc4 d5 16. exd5 cxd5 17. Bf1 Ne4 18. Nxe4 dxe4 {0-1 (51) Wood,P (1965)-Ager,J (2223) Velden 2009}) 12... bxc4 {[%emt 0:00:09]} 13. e5 {[%emt 0:00:09]} dxe5 {[%emt 0:00:04]} (13... Nd5 14. exd6 Bf6 15. dxe7 (15. Bxc4 Bxg5 16. Nxg5 exd6 $11) 15... Qxe7 16. Bh6 $16) 14. dxe5 {[%emt 0:00:02]} (14. Nxe5 Nxe5 15. dxe5 Nd5 $11) 14... Nd5 {[%emt 0:00:02]} 15. e6 {[%emt 0:00:14]} fxe6 {[%emt 0:00:04]} 16. Bxc4 {[%emt 0:00:02]} N7b6 {[%emt 0:00:10]} 17. Ba2 {[%emt 0:00:05] And now Rfe1 would win.} c5 {[%emt 0:00:09]} 18. Rfe1 {[%emt 0:00:14]} Qd7 {[%emt 0:00:15]} 19. Qe2 {[%emt 0:00:06]} Kh8 {[%emt 0:00:20]} 20. Qxe6 {[%emt 0:00:35]} (20. Ne5 {looks sharper.} Qe8 21. Ng4 Nxc3 22. bxc3 Qc6 23. f3) 20... Qxe6 {[%emt 0:00:06]} 21. Rxe6 {[%emt 0:00:01][%cal Rc3d5]} Nxc3 {[%emt 0:00:01]} (21... Bxc3 $11 {keeps the balance.} 22. Bxd5 (22. bxc3 Nxc3 23. Rd2 Nxa2 $11) 22... Bxd5 23. Rxb6 Bxf3 24. gxf3 Bd4) 22. bxc3 $16 {[%emt 0:00:02]} Na4 {[%emt 0:00:07]} (22... Rfd8 $14 23. Rd2 Bxf3 24. gxf3 Rxd2 25. Bxd2 Na4) 23. Bd5 {[%emt 0:00:39] White is more active.} ({Inferior is} 23. Bxe7 Nxc3 24. Bxf8 Bxf8 $15) (23. Rxe7 Bc6) ({White should play} 23. Rd7 $16 Bc6 24. Ra7 (24. Rdxe7 Nxc3 25. Bc4 Bb5 $14)) 23... Nxc3 {[%emt 0:00:26]} (23... Rfd8 {seems wilder.} 24. Bb3 Rxd1+ 25. Bxd1 Bd5) 24. Bxb7 {[%emt 0:00:03]} Nxd1 {[%emt 0:00:01]} 25. Bxc8 {[%emt 0:00:02]} ({Of course not} 25. Rxe7 Rce8 26. Rd7 h6 27. Rxd1 hxg5 $17) 25... Rxc8 {[%emt 0:00:00]} 26. Rxe7 {[%emt 0:00:04]} c4 {[%emt 0:00:02][%cal Bc5c4,Bc4c3][%mdl 32]} 27. Re1 {[%emt 0:00:03]} (27. Kf1 $11) 27... Nb2 $15 {[%emt 0:00:04]} 28. Rc1 {[%emt 0:00:03]} c3 {[%emt 0:00:03]} 29. Rc2 {[%emt 0:00:06]} (29. Ne1 $142) 29... Nc4 $17 {[%emt 0:00:04]} 30. Bc1 {[%emt 0:00:03]} Rd8 {[%emt 0:00:07]} 31. Kf1 {[%emt 0:00:01]} Nb2 {[%emt 0:00:07]} (31... Kg8 $17 32. Ke2 Re8+ 33. Kf1 h6) 32. Ng5 $1 $11 {[%emt 0:00:05] aiming for Nf7+.} Rd7 {[%emt 0:00:09] Inhibits Nf7+.} 33. Ne4 {[%emt 0:00:02]} ({Don't go for} 33. Bxb2 $2 cxb2 34. Rc8+ Bf8 $1 {[%mdl 512]} 35. Rxf8+ Kg7 36. Ne6+ Kh6 $19) 33... Na4 {[%emt 0:00:14]} 34. Ke2 {[%emt 0:00:04]} Re7 {[%emt 0:00:01]} 35. f3 {[%emt 0:00:01]} ({Better is} 35. Kd3 $11) 35... Kg8 {[%emt 0:00:09]} (35... Nc5 $15) 36. Bg5 {[%emt 0:00:01]} Rb7 {[%emt 0:00:04]} 37. Bf6 {[%emt 0:00:02]} Rb2 {[%emt 0:00:03]} 38. Kd3 {[%emt 0:00:03]} Bxf6 {[%emt 0:00:04]} (38... Bf8 $11) 39. Nxf6+ {[%emt 0:00:02][%mdl 4096] Endgame KRN-KRN} Kf7 {[%emt 0:00:00]} (39... Kg7 $14 40. Ne4 Rb3) 40. Ne4 {[%emt 0:00:01]} ({White should try} 40. Nxh7 $16 Rb5 41. h4) 40... Rb3 {[%emt 0:00:10]} 41. Nxc3 {[%emt 0:00:09]} (41. Ng5+ {is more complex.} Kg7 42. Ra2 Kf6 43. Nxh7+ Kf5 44. Nf8) 41... Rxa3 {[%emt 0:00:01]} 42. Kc4 {[%emt 0:00:01][%mdl 8192]} (42. Ra2 $11 Rxa2 43. Nxa2) 42... Nxc3 {[%emt 0:00:02]} (42... Rxc3+ $142 43. Rxc3 Nxc3) 43. Rxc3 $2 $19 {[%emt 0:00:02] KR-KR} (43. Kc5) 43... Ra2 $2 {[%emt 0:00:00]} (43... Rxc3+ $19 44. Kxc3 Ke6) 44. g3 {[%emt 0:00:04]} Rxh2 {[%emt 0:00:03]} 45. Ra3 {[%emt 0:00:01]} Rg2 {[%emt 0:00:03]} 46. g4 {[%emt 0:00:02]} Rg3 {[%emt 0:00:02]} 47. Kd5 {[%emt 0:00:02]} a5 {[%emt 0:00:02]} 48. Ke4 {[%emt 0:00:02]} h5 {[%emt 0:00:05]} 49. gxh5 {[%emt 0:00:02]} (49. Kf4 $5 {[%cal Rf4g3]} Rg2 50. Rxa5 $11) 49... gxh5 {[%emt 0:00:00]} 50. Rxa5 {[%emt 0:00:02]} Kg6 {[%emt 0:00:01]} 51. Kf4 {[%emt 0:00:02]} Rg1 {[%emt 0:00:02]} 52. Ra6+ {[%emt 0:00:01]} Kg7 {[%emt 0:00:03]} 53. Ra5 {[%emt 0:00:01]} Kh6 {[%emt 0:00:06]} 54. Ra6+ {[%emt 0:00:02]} Kg7 {[%emt 0:00:02]} 55. Ra5 {[%emt 0:00:01]} h4 {[%emt 0:00:01]} 56. Rh5 {[%emt 0:00:01]} Rh1 {[%emt 0:00:02]} 57. Kg4 {[%emt 0:00:02]} Kg6 {[%emt 0:00:02] ( -> ...Rg1+)} 58. Rxh4 {[%emt 0:00:01]} Rg1+ {[%emt 0:00:01]} 59. Kf4 {[%emt 0:00:02] Threatening mate with Rg4+.} Ra1 {[%emt 0:00:02]} 60. Rg4+ {[%emt 0:00:02]} Kf6 {[%emt 0:00:01]} 61. Rh4 {[%emt 0:00:02]} Ra4+ {[%emt 0:00:02]} 62. Kg3 {[%emt 0:00:01]} Rxh4 {[%emt 0:00:02]} 63. Kxh4 $11 {[%emt 0:00:02] KP-K} Kf5 {[%emt 0:00:00]} 64. Kg3 {[%emt 0:00:01]} Kf6 $4 {[%emt 0:00:02][%mdl 8192]} (64... Kg5 $11) 65. Kf4 {[%emt 0:00:02] White mates.} Ke6 {[%emt 0:00:02]} 66. Kg5 {[%emt 0:00:01]} Kf7 {[%emt 0:00:01]} 67. Kf5 {[%emt 0:00:02]} Kg7 {[%emt 0:00:01] [#]} 68. Ke6 $1 {[%emt 0:00:02]} Kg6 {[%emt 0:00:01]} 69. f4 {[%emt 0:00:01][%cal Bf3f4,Bf4f5][%mdl 32]} Kg7 {[%emt 0:00:00]} 70. f5 {[%emt 0:00:02]} Kf8 {[%emt 0:00:04]} 71. Kf6 {[%emt 0:00:02]} Kg8 {[%emt 0:00:01]} 72. Ke7 {[%emt 0:00:01] Never resign too early!  Weighted Error Value: White=0.36/Black=0.31} 1-0

[Event "Queens Festival Final Team 2022"]
[Site "Tornelo"]
[Date "2022.06.26"]
[Round "7.3"]
[White "Medeiros, Thauane Ferreira"]
[Black "Shohradowa, Lala"]
[Result "1/2-1/2"]
[ECO "B13"]
[WhiteElo "1884"]
[BlackElo "1856"]
[Annotator "NA RC"]
[PlyCount "98"]
[EventDate "2022.06.24"]
[EventType "team-tourn"]
[EventCountry "NET"]
[SourceTitle "playchess.com"]
[Source "ChessBase"]
[SourceQuality "1"]
[WhiteTeam "Brazil"]
[BlackTeam "Turkmenistan"]
[WhiteTeamCountry "BRA"]
[BlackTeamCountry "TKM"]
[TimeControl "180+2"]

1. d4 {[%emt 0:00:34]} Nf6 {[%emt 0:00:05]} 2. Bf4 {[%emt 0:00:02]} c5 {[%emt 0:00:03]} 3. e3 {[%emt 0:00:03]} cxd4 {[%emt 0:00:02]} 4. exd4 {[%emt 0:00:02]} d5 {[%emt 0:00:01]} 5. c3 {[%emt 0:00:04]} Nc6 {[%emt 0:00:02]} 6. Nd2 {[%emt 0:00:02]} Bf5 {[%emt 0:00:02]} 7. h3 {[%emt 0:00:04]} e6 {[%emt 0:00:02]} 8. Ngf3 {[%emt 0:00:01]} Bd6 {[%emt 0:00:02]} 9. Bxd6 {[%emt 0:00:04]} Qxd6 {[%emt 0:00:02]} 10. Be2 {[%emt 0:00:00]} O-O {[%emt 0:00:02]} 11. O-O {[%emt 0:00:01]} h6 {[%emt 0:00:03]} 12. Re1 {[%emt 0:00:02]} Rab8 {[%emt 0:00:06]} 13. Nb3 {[%emt 0:00:06]} Ne4 {[%emt 0:00:05]} 14. Bd3 {[%emt 0:00:03]} b5 {[%emt 0:00:03]} 15. a3 {[%emt 0:00:03]} a5 {[%emt 0:00:03]} 16. Qe2 {[%emt 0:00:04]} b4 {[%emt 0:00:03]} 17. axb4 {[%emt 0:00:00]} axb4 {[%emt 0:00:02]} 18. c4 {[%emt 0:00:55]} dxc4 {[%emt 0:00:03]} 19. Bxc4 {[%emt 0:00:08]} Ra8 {[%emt 0:00:15]} 20. Rxa8 {[%emt 0:00:05]} Rxa8 {[%emt 0:00:03]} 21. Bd3 {[%emt 0:00:17]} Nf6 {[%emt 0:00:14]} 22. Bxf5 {[%emt 0:00:02]} exf5 {[%emt 0:00:02]} 23. Qd3 {[%emt 0:00:05]} Ne4 {[%emt 0:00:04]} 24. Nbd2 {[%emt 0:00:17]} Nxd2 {[%emt 0:00:04]} 25. Qxd2 {[%emt 0:00:00]} b3 {[%emt 0:00:08]} 26. Qd3 {[%emt 0:00:03]} Qd5 {[%emt 0:00:03]} 27. Rc1 {[%emt 0:00:21]} Rd8 {[%emt 0:00:13]} 28. Rc3 {[%emt 0:00:19]} Nb4 {[%emt 0:00:06]} 29. Qe3 {[%emt 0:00:04]} Nc2 {[%emt 0:00:04]} 30. Qd2 {[%emt 0:00:02]} Nxd4 {[%emt 0:00:02]} 31. Nxd4 {[%emt 0:00:01]} Qxd4 {[%emt 0:00:02]} 32. Qxd4 {[%emt 0:00:00]} Rxd4 {[%emt 0:00:02]} 33. Rxb3 {[%emt 0:00:00]} Rd1+ {[%emt 0:00:02]} 34. Kh2 {[%emt 0:00:01]} g5 {[%emt 0:00:04]} 35. g3 {[%emt 0:00:03]} Kg7 {[%emt 0:00:04]} 36. Kg2 {[%emt 0:00:01]} h5 {[%emt 0:00:03]} 37. Rb5 {[%emt 0:00:02]} Kg6 {[%emt 0:00:03]} 38. b4 {[%emt 0:00:02]} Rb1 {[%emt 0:00:02]} 39. Rb7 {[%emt 0:00:08]} g4 {[%emt 0:00:04]} 40. hxg4 {[%emt 0:00:00]} fxg4 {[%emt 0:00:02]} 41. b5 {[%emt 0:00:00]} Rb3 {[%emt 0:00:05]} 42. Rb8 {[%emt 0:00:02]} Kg7 {[%emt 0:00:02]} 43. b6 {[%emt 0:00:02]} Rb2 {[%emt 0:00:04]} 44. Kf1 {[%emt 0:00:04]} Kf6 {[%emt 0:00:07]} 45. Kg2 {[%emt 0:00:02]} Kg7 {[%emt 0:00:02]} 46. Rb7 {[%emt 0:00:02]} Rb1 {[%emt 0:00:05]} 47. Rb8 {[%emt 0:00:02]} Kg6 {[%emt 0:00:04]} 48. Rb7 {[%emt 0:00:02]} Kg7 {[%emt 0:00:04]} 49. Rb8 {[%emt 0:00:01]} Rb2 {[%emt 0:00:03]} 1/2-1/2

[Event "Queens Festival Final Team 2022"]
[Site "Tornelo"]
[Date "2022.06.26"]
[Round "7.3"]
[White "Agajanova, Meryem"]
[Black "Bucci, Andrea Vidigal"]
[Result "1-0"]
[ECO "D11"]
[WhiteElo "1783"]
[BlackElo "1769"]
[Annotator "NA RC"]
[PlyCount "65"]
[EventDate "2022.06.24"]
[EventType "team-tourn"]
[EventCountry "NET"]
[SourceTitle "playchess.com"]
[Source "ChessBase"]
[SourceQuality "1"]
[WhiteTeam "Turkmenistan"]
[BlackTeam "Brazil"]
[WhiteTeamCountry "TKM"]
[BlackTeamCountry "BRA"]
[TimeControl "180+2"]

1. d4 {[%emt 0:00:02]} d5 {[%emt 0:00:04]} 2. Nf3 {[%emt 0:00:02]} c6 {[%emt 0:00:02]} 3. c4 {[%emt 0:00:02]} Nf6 {[%emt 0:00:01]} 4. Nbd2 {[%emt 0:00:02]} Bf5 {[%emt 0:00:04]} 5. g3 {[%emt 0:00:01]} Nbd7 {[%emt 0:00:02]} 6. Bg2 {[%emt 0:00:01]} e6 {[%emt 0:00:02]} 7. O-O {[%emt 0:00:02]} Be7 {[%emt 0:00:01]} 8. Re1 {[%emt 0:00:02]} O-O {[%emt 0:00:02]} 9. Nh4 {[%emt 0:00:04]} Bg6 {[%emt 0:00:02]} 10. Nxg6 {[%emt 0:00:03]} hxg6 {[%emt 0:00:00]} 11. e4 {[%emt 0:00:01]} dxe4 {[%emt 0:00:03]} 12. Nxe4 {[%emt 0:00:02]} Nxe4 {[%emt 0:00:00]} 13. Bxe4 {[%emt 0:00:01]} Nf6 {[%emt 0:00:02]} 14. Bg2 {[%emt 0:00:01]} Qb6 {[%emt 0:00:08]} 15. Be3 {[%emt 0:00:08]} Qc7 {[%emt 0:00:04]} 16. Qe2 {[%emt 0:00:12]} Rad8 {[%emt 0:00:04]} 17. Red1 {[%emt 0:00:02]} c5 {[%emt 0:00:10]} 18. dxc5 {[%emt 0:00:08]} Bxc5 {[%emt 0:00:02]} 19. Bxc5 {[%emt 0:00:02]} Qxc5 {[%emt 0:00:00]} 20. Bxb7 {[%emt 0:00:02]} Rb8 {[%emt 0:00:03]} 21. Bf3 {[%emt 0:00:05]} Rb4 {[%emt 0:00:12]} 22. b3 {[%emt 0:00:02]} a5 {[%emt 0:00:03]} 23. Rab1 {[%emt 0:00:38]} Rfb8 {[%emt 0:00:05]} 24. Rd3 {[%emt 0:00:07]} a4 {[%emt 0:00:03]} 25. Qd1 {[%emt 0:00:02]} axb3 {[%emt 0:00:10]} 26. axb3 {[%emt 0:00:02]} Nh5 {[%emt 0:00:10]} 27. Rd8+ {[%emt 0:00:06]} Kh7 {[%emt 0:00:05]} 28. Rxb8 {[%emt 0:00:15]} Rxb8 {[%emt 0:00:00]} 29. Qd7 {[%emt 0:00:20]} Qf5 {[%emt 0:00:19]} 30. Qd1 {[%emt 0:00:11]} Nf6 {[%emt 0:00:02]} 31. Kg2 {[%emt 0:00:06]} Qc5 {[%emt 0:00:24]} 32. Qd2 {[%emt 0:00:04]} Rb7 {[%emt 0:00:09]} 33. Bxb7 {[%emt 0:00:03]} 1-0

[Event "Queens Festival Final Team 2022"]
[Site "Tornelo"]
[Date "2022.06.26"]
[Round "7.4"]
[White "Bian, Erin"]
[Black "Mwendwa, Triza"]
[Result "1-0"]
[ECO "C11"]
[WhiteElo "1811"]
[BlackElo "1470"]
[Annotator "NA RC"]
[PlyCount "57"]
[EventDate "2022.06.24"]
[EventType "team-tourn"]
[EventCountry "NET"]
[SourceTitle "playchess.com"]
[Source "ChessBase"]
[SourceQuality "1"]
[WhiteTeam "United States"]
[BlackTeam "Kenya"]
[WhiteTeamCountry "USA"]
[BlackTeamCountry "KEN"]
[TimeControl "180+2"]

1. e4 {[%emt 0:00:02]} e6 {[%emt 0:00:07]} 2. d4 {[%emt 0:00:02]} d5 {[%emt 0:00:03]} 3. Nc3 {[%emt 0:00:01]} Nf6 {[%emt 0:00:03]} 4. e5 {[%emt 0:00:01]} Nfd7 {[%emt 0:00:02]} 5. f4 {[%emt 0:00:01]} c5 {[%emt 0:00:02]} 6. Nf3 {[%emt 0:00:01]} Nc6 {[%emt 0:00:04]} 7. Be3 {[%emt 0:00:01]} Rb8 {[%emt 0:00:07]} 8. Be2 {[%emt 0:00:15]} a6 {[%emt 0:00:17]} 9. O-O {[%emt 0:00:04]} b5 {[%emt 0:00:03]} 10. Qd2 {[%emt 0:00:03]} b4 {[%emt 0:00:07]} 11. Nd1 {[%emt 0:00:01]} Qb6 {[%emt 0:00:11]} 12. g4 {[%emt 0:00:23]} a5 {[%emt 0:00:17]} 13. f5 {[%emt 0:00:02]} Ba6 {[%emt 0:00:08]} 14. Bxa6 {[%emt 0:00:06]} Qxa6 {[%emt 0:00:02]} 15. fxe6 {[%emt 0:00:01]} fxe6 {[%emt 0:00:03]} 16. Qf2 {[%emt 0:00:37]} Be7 {[%emt 0:00:27]} 17. dxc5 {[%emt 0:00:05]} Ncxe5 {[%emt 0:00:07]} 18. Nxe5 {[%emt 0:00:03]} Nxe5 {[%emt 0:00:03]} 19. Bd4 {[%emt 0:00:08]} Bf6 {[%emt 0:00:18]} 20. Qf4 {[%emt 0:00:40]} Nd7 {[%emt 0:00:18]} 21. Bxf6 {[%emt 0:00:04]} gxf6 {[%emt 0:00:05]} 22. Qd4 {[%emt 0:00:16]} Rg8 {[%emt 0:00:22]} 23. Ne3 {[%emt 0:00:06]} Qc6 {[%emt 0:00:15]} 24. Rae1 {[%emt 0:00:03]} Rb5 {[%emt 0:00:11]} 25. Nxd5 {[%emt 0:00:06]} Rxc5 {[%emt 0:00:03]} 26. Nxf6+ {[%emt 0:00:10]} Nxf6 {[%emt 0:00:02]} 27. Rxf6 {[%emt 0:00:01]} Rxg4+ {[%emt 0:00:06]} 28. Qxg4 {[%emt 0:00:02]} Rf5 {[%emt 0:00:03]} 29. Rfxe6+ {[%emt 0:00:02]} 1-0

[Event "Queens Festival Final Team 2022"]
[Site "Tornelo"]
[Date "2022.06.26"]
[Round "7.4"]
[White "Shah, Riya"]
[Black "Krush, Irina"]
[Result "0-1"]
[ECO "D00"]
[WhiteElo "1559"]
[BlackElo "2430"]
[Annotator "TA"]
[PlyCount "58"]
[EventDate "2022.06.24"]
[EventType "team-tourn"]
[EventCountry "NET"]
[SourceTitle "playchess.com"]
[Source "ChessBase"]
[SourceQuality "1"]
[WhiteTeam "Kenya"]
[BlackTeam "United States"]
[WhiteTeamCountry "KEN"]
[BlackTeamCountry "USA"]
[TimeControl "180+2"]

{[%evp 12,58,-48,-46,-37,-52,-49,-55,-52,-65,-60,-71,-66,-66,-33,-29,-27,-32,-32,-36,-31,-43,0,-47,-54,-96,-83,-122,-117,-488,-443,-435,-350,-827,-803,-1119,-986,-1624,-1552,-2572,-2416,-2911,-1481,-1232,-964,-927,-848,-29986,-29987]} 1. d4 {[%emt 0:00:02]} d5 {[%emt 0:00:05]} 2. e3 {[%emt 0:00:05]} Nf6 {[%emt 0:00:02]} 3. Bd3 {[%emt 0:00:02]} c5 {[%emt 0:00:05]} 4. c3 {[%emt 0:00:02]} Nc6 {[%emt 0:00:01]} 5. f4 {[%emt 0:00:01]} Bg4 {[%emt 0:00:03]} 6. Nf3 {[%emt 0:00:01]} e6 {[%emt 0:00:01]} 7. O-O {[%emt 0:00:01] The main line 7.0-0 scores better than 7.Nbd2.} Be7 {[%emt 0:00:03] D00: 1 d4 d5: Unusual lines.} 8. Qe1 {[%emt 0:00:02]} O-O {[%emt 0:00:03]} 9. Ne5 {[%emt 0:00:01]} Bf5 {[%emt 0:00:02] [#] Black is slightly better.} 10. Bxf5 $146 {[%emt 0:00:06]} ({Predecessor:} 10. Qe2 Qb6 11. Nd2 Rac8 {0-1 (11) Voudouris,N (1616)-Zielaz,T (2077) LSS email 2018}) 10... exf5 {[%emt 0:00:01]} 11. b3 {[%emt 0:00:03]} Ne4 {[%emt 0:00:03]} 12. Bb2 {[%emt 0:00:03]} f6 {[%emt 0:00:02]} 13. Nxc6 {[%emt 0:00:02]} bxc6 {[%emt 0:00:01]} 14. Nd2 {[%emt 0:00:01]} Nxd2 {[%emt 0:00:21]} 15. Qxd2 {[%emt 0:00:02]} Re8 {[%emt 0:00:01]} 16. Rf3 {[%emt 0:00:02]} Bd6 {[%emt 0:00:11]} 17. Re1 {[%emt 0:00:03]} (17. c4 $11 {might be stronger.}) 17... Re4 $15 {[%emt 0:00:05]} 18. Qf2 {[%emt 0:00:09]} Qe7 {[%emt 0:00:02]} 19. Qh4 {[%emt 0:00:08]} Re8 {[%emt 0:00:08]} 20. Kf2 $2 {[%emt 0:00:02][%mdl 8192] This move loses the game for White.} (20. dxc5 $17 Bxc5 21. Bc1) 20... cxd4 {[%emt 0:01:01]} 21. cxd4 {[%emt 0:00:03]} c5 {[%emt 0:00:01][%cal Bc6c5,Bc5d4][%mdl 32] [#] Hoping for ...cxd4.} 22. Bc3 {[%emt 0:01:02]} (22. Kf1 Bxf4 23. Rxf4 Rxe3 24. Rxe3 Qxe3 25. Qg3 Qe2+ 26. Kg1 Qxb2 27. dxc5) 22... cxd4 $19 {[%emt 0:00:04]} 23. Bd2 {[%emt 0:00:08]} Bc5 {[%emt 0:00:07][%cal Rd4e3]} 24. Qg3 {[%emt 0:00:07]} dxe3+ {[%emt 0:00:01]} 25. Bxe3 {[%emt 0:00:02]} d4 {[%emt 0:00:02][%cal Bd5d4,Bd4e3][%mdl 32]} 26. b4 {[%emt 0:00:13]} dxe3+ {[%emt 0:00:03]} 27. Kg1 {[%emt 0:00:05]} Bxb4 {[%emt 0:00:06]} 28. Re2 {[%emt 0:00:03]} Qd7 {[%emt 0:00:05] [#] ( -> ...Qd1+)} 29. h3 {[%emt 0:00:01]} Qd1+ {[%emt 0:00:02] Weighted Error Value: White=1.66/Black=0.48} 0-1